fUST/lending_fUST_20240116
["ID","MTS","AMOUNT","RATE_DAILY","PERIOD"]
[311795422,1705401034687,-3957.41775101,0.00028013,5]
[311795423,1705401034696,-588.69526505,0.00028013,5]
[311795434,1705401038442,-861.6446352,0.00018805,2]
[311795435,1705401038451,-877.30894582,0.00028013,5]
[311795437,1705401038501,-3188.82753895,0.00028013,5]
[311795438,1705401038510,-2020.92319399,0.00028013,3]
[311795440,1705401038519,-5000.0,0.00028013,5]
[311795442,1705401038530,-5000.0,0.00028013,5]
[311795444,1705401038539,-13209.6056713,0.00028013,5]
[311795445,1705401038548,-5000.0,0.00028013,5]
[311795446,1705401038558,-5000.0,0.00028013,5]
[311795447,1705401038568,-2223.51724998,0.00028013,5]
[311795448,1705401038578,-5000.0,0.00028013,5]
[311795449,1705401038588,-301.45322004,0.00028451,2]
[311795450,1705401038598,-591.703994,0.00028453,2]
[311795451,1705401038607,-591.703994,0.00028453,2]
[311795452,1705401038617,-635.985451,0.00028453,2]
[311795453,1705401038627,-635.985451,0.00028453,2]
[311795455,1705401038637,-31279.19269478,0.00028453,7]
[311795457,1705401038647,-274.42712104,0.000285,2]
[311795459,1705401038657,-3283.31535057,0.000285,4]
[311795507,1705401041435,-1269.46806942,0.000285,4]
[311795508,1705401041446,-4557.44231904,0.000285,4]
[311795509,1705401041455,-155.0,0.00028767,2]
[311795510,1705401041464,-3121.92324585,0.000289,2]
[311795511,1705401041473,-150.0,0.00028953,2]
[311795512,1705401041482,-150.295,0.00028953,2]
[311795513,1705401041491,-150.0,0.00028953,2]
[311795514,1705401041500,-242.55733695,0.00029,2]
[311795530,1705401043472,-598.12014829,0.00028046,5]
[311795598,1705402232634,-154.98450155,0.00019898,2]
[311795601,1705402232647,-159.15098982,0.00019899,2]
[311795603,1705402232660,-266.58072462,0.0002,2]
[311795605,1705402232672,-327.11193919,0.00021,2]
[311795608,1705402232684,-157.928056,0.00021918,2]
[311795610,1705402232696,-157.928056,0.00023346,2]
[311795612,1705402232706,-19846.52895814,0.00023363,2]
[311795613,1705402232717,-13706.10600457,0.00023364,2]
[311795614,1705402232727,-686.48050951,0.00023365,2]
[311795616,1705402232736,-3890.83,0.00023371,3]
[311795618,1705402232746,-3242.35,0.00023371,3]
[311795620,1705402232758,-902.74445262,0.00023375,2]
[311795622,1705402232770,-15195.87808202,0.00023377,2]
[311795624,1705402232781,-2313.91229666,0.00023381,2]
[311795668,1705402233633,-11993.89257633,0.00023381,2]
[311795742,1705402241564,-1380.58447264,0.00019897,2]
[311795743,1705402241573,-1380.58447264,0.00019897,2]
[311795744,1705402241586,-10592.19512701,0.00023381,2]
[311795745,1705402241595,-521.09377722,0.00023997,2]
[311795746,1705402241604,-4009.14861516,0.00024,2]
[311795747,1705402241613,-157.928056,0.00024774,2]
[311795748,1705402241623,-4716.82638211,0.00025,2]
[311795749,1705402241632,-154.98450155,0.00025026,2]
[311795750,1705402241643,-170.257385,0.00025031,2]
[311795751,1705402241654,-200.0,0.000257,7]
[311795752,1705402241664,-9110.22573903,0.00026644,4]
[311795753,1705402241674,-291.91809303,0.00027,2]
[311795754,1705402241683,-461.1686624,0.00027,2]
[311795755,1705402241694,-976.18563318,0.00027829,2]
[311795756,1705402241704,-170.49588422,0.00027943,2]
[311795757,1705402241713,-1452.43507534,0.00027973,5]
[311795758,1705402241723,-2612.84266232,0.00027996,5]
[311795759,1705402241733,-658.37982274,0.0002801,3]
[311795760,1705402241743,-495.36629873,0.00028024,5]
[311795803,1705402243651,-154.98450155,0.00025195,4]
[311795804,1705402243662,-114.14998641,0.00027714,2]
[311795805,1705402243675,-543.84367337,0.00027714,2]
[311795818,1705402457842,154.90705277,0.000176,2]
[311795819,1705402469833,200.0,0.00021885,7]
[311795825,1705402770725,200.0,0.00021872,7]
[311795833,1705403214528,-12000.0,0.00018493,2]
[311795834,1705403214798,-12000.0,0.00018493,2]
[311795835,1705403214955,-900.0,0.00018493,2]
[311795838,1705403239674,-4529.0,0.00018493,2]
[311795846,1705403308897,-452.21175221,0.00018491,2]
[311795847,1705403308918,-1380.58447264,0.00018492,2]
[311795848,1705403308938,-3345.20377515,0.00018492,2]
[311795850,1705403383189,155.0,0.00016969,3]
[311795884,1705403431787,-5178.14619186,0.00018288,2]
[311795887,1705403431796,-1380.58447264,0.00018289,2]
[311795890,1705403431805,-212.649449,0.0001829,2]
[311795893,1705403431814,-784.9463782,0.00018493,2]
[311795896,1705403431823,-19846.52895814,0.00018855,2]
[311795899,1705403431832,-451.80721191,0.00018856,2]
[311795902,1705403431842,-81129.55401684,0.00018856,2]
[311795922,1705403431937,-1695.03946883,0.0001886,2]
[311795925,1705403431949,-155.33021401,0.0001886,2]
[311795927,1705403431959,-155.26235345,0.0001886,2]
[311795929,1705403431968,-587.69337227,0.0001886,2]
[311795931,1705403431978,-3000.0,0.00018863,2]
[311795933,1705403431987,-265.7994308,0.00018865,2]
[311795935,1705403431996,-284.47045082,0.00019746,2]
[311795938,1705403432006,-679.24429502,0.00019869,2]
[311795940,1705403432015,-2810.73217325,0.00019894,2]
[311795941,1705403432024,-5651.00408785,0.00019896,2]
[311795943,1705403432033,-170.49588421,0.000209,2]
[311795945,1705403432042,-6754.06885018,0.00021,2]
[311795947,1705403432051,-327.11193919,0.00021,2]
[311795949,1705403432060,-243.564012,0.00021603,2]
[311795951,1705403432069,-645.99047875,0.00022221,2]
[311795953,1705403432079,-168.50851427,0.000225,2]
[311795955,1705403432087,-150.0,0.00024544,2]
[311795957,1705403432096,-170.49588421,0.00024733,2]
[311795959,1705403432106,-1045.05948708,0.00025,2]
[311795961,1705403432115,-200.0,0.00025479,2]
[311795963,1705403432124,-1667.21456617,0.00025553,2]
[311795966,1705403432135,-2718.21416202,0.00025553,2]
[311796019,1705403437923,-28017.37178038,0.00025553,2]
[311796079,1705403440693,-3356.21567163,0.00025553,2]
[311796080,1705403440706,-3532.34728723,0.00025553,2]
[311796081,1705403440718,-3071.93192745,0.00025553,2]
[311796082,1705403440803,-404.01179138,0.00025553,2]
[311796083,1705403440814,-1270.47795677,0.00025553,2]
[311796120,1705403445876,-472.55486556,0.00025553,2]
[311796121,1705403445887,-5489.65999141,0.00025553,2]
[311796122,1705403445897,-1828.99284546,0.00026349,2]
[311796123,1705403445947,-3349.1533464,0.00026349,2]
[311796124,1705403445957,-3154.86484705,0.0002635,2]
[311796127,1705403460507,162.16655393,0.00016969,2]
[311796138,1705403754671,-3951.89502767,0.00023451,2]
[311796139,1705403754692,-1380.58447264,0.00023452,2]
[311796140,1705403754713,-1171.52049969,0.00023452,2]
[311796243,1705404641443,-155.0,0.00021105,4]
[311796244,1705404641453,-166.666667,0.00021944,2]
[311796245,1705404641463,-148.45080896,0.00022,4]
[311796246,1705404641479,-144.6952455,0.00022,4]
[311796247,1705404641488,-8752.33712952,0.00022008,2]
[311796248,1705404641497,-4317.64399406,0.00022009,2]
[311796279,1705404643067,-791.89661041,0.00022009,2]
[311796457,1705405838255,-243.564011,0.00018644,2]
[311796459,1705405838264,-155.0,0.00018987,3]
[311796460,1705405838273,-185.21723309,0.00018988,2]
[311796461,1705405838283,-4980.42623558,0.00019082,2]
[311796544,1705405846299,-197.71995628,0.00019082,2]
[311796545,1705405846308,-310.10438273,0.00019083,2]
[311796668,1705406072137,280.0,0.00022463,7]
[311796684,1705406304851,264.475839,0.00017566,2]
[311796694,1705406353502,661.8542805,0.00017564,2]
[311796698,1705406456838,3000.0,0.00017565,2]
[311796699,1705406465327,1658.9806948,0.00017942,2]
[311796704,1705406470189,2353.4531355,0.00017977,2]
[311796706,1705406532567,24900.0,0.0001765,2]
[311796710,1705406594646,-3417.0,0.00018422,2]
[311796713,1705406663511,-154.98450155,0.00018418,3]
[311796714,1705406663532,-224.89012973,0.00018419,2]
[311796715,1705406663556,-5178.14619186,0.00018419,2]
[311796716,1705406663576,-1380.58447264,0.0001842,2]
[311796717,1705406663601,-971.39470422,0.00018421,2]
[311796722,1705406727409,-7995.0,0.0001842,2]
[311796733,1705406855866,-2811.92311989,0.00018419,2]
[311796734,1705406855889,-35.07688011,0.0001842,2]
[311796749,1705406972421,200.0,0.00022857,7]
[311796784,1705407032348,-154.98450155,0.00018419,3]
[311796785,1705407032358,-1380.58447264,0.00018557,2]
[311796786,1705407032368,-199.81413446,0.00018558,2]
[311796787,1705407032377,-185.21723309,0.00018887,2]
[311796788,1705407032387,-183.60432389,0.000189,2]
[311796789,1705407032396,-158.78714545,0.00019083,2]
[311796790,1705407032405,-167.879947,0.00019178,2]
[311796791,1705407032415,-169.851621,0.00019178,2]
[311796793,1705407032424,-2486.9525948,0.00019187,2]
[311796795,1705407032433,-167.879946,0.00019753,2]
[311796797,1705407032443,-2132.36034519,0.0002,5]
[311796799,1705407032452,-154.98450155,0.00020072,2]
[311796801,1705407032462,-236.885099,0.00020073,2]
[311796803,1705407032472,-200.0,0.0002078,2]
[311796805,1705407032481,-155.19735851,0.0002078,2]
[311796807,1705407032491,-2035.80105868,0.00020781,2]
[311796809,1705407032500,-1838.14652239,0.00020998,2]
[311796811,1705407032510,-170.11190484,0.00020998,2]
[311796812,1705407032520,-875.01165605,0.00020999,2]
[311796814,1705407032529,-6514.99605717,0.00020999,2]
[311796816,1705407032538,-2771.07736543,0.00021,2]
[311796818,1705407032547,-3593.32479846,0.00021,2]
[311796820,1705407032559,-4322.26624302,0.00021,2]
[311796822,1705407032569,-200.47020245,0.00021,2]
[311796824,1705407032581,-200.47020244,0.00021,2]
[311796826,1705407032590,-293.14605446,0.00022,4]
[311796828,1705407032599,-1448.06570961,0.00022,2]
[311797116,1705407041449,-162.35455728,0.000209,2]
[311797118,1705407041458,-2503.82931806,0.00022,2]
[311797120,1705407041467,-344.73296744,0.00022009,2]
[311797122,1705407041476,-1823.92205861,0.00022463,2]
[311797124,1705407041486,-1287.17016169,0.00022747,5]
[311797126,1705407041495,-1837.71726851,0.00023216,2]
[311797128,1705407041504,-151.0,0.00023442,2]
[311797130,1705407041513,-8532.83,0.00023442,3]
[311797132,1705407041522,-2407.81199655,0.00023442,3]
[311797134,1705407041534,-1717.92,0.00023442,3]
[311797136,1705407041545,-2984.95800345,0.00023442,3]
[311797138,1705407041554,-2865.27601515,0.0002345,2]
[311797330,1705407046483,-154.98450155,0.00021096,4]
[311797331,1705407046494,-154.98450465,0.00023449,2]
[311797332,1705407046503,-5129.82588825,0.0002345,2]
[311797333,1705407046513,-7910.45004853,0.00023451,2]
[311797335,1705407046523,-13392.48555047,0.00023452,2]
[311797336,1705407046533,-182.50978617,0.00023452,2]
[311797337,1705407046542,-214.95644143,0.00023452,2]
[311797340,1705407046552,-157.11446676,0.00023452,2]
[311797341,1705407046561,-151.0,0.00023452,2]
[311797342,1705407046571,-643.039438,0.00023452,2]
[311797344,1705407046581,-643.039438,0.00023452,2]
[311797346,1705407046591,-183.60432389,0.000239,2]
[311797347,1705407046601,-4009.14861616,0.00024,2]
[311797349,1705407046611,-496.4931708,0.0002495,5]
[311797351,1705407046620,-280.0,0.00025143,7]
[311797352,1705407046629,-620.03080367,0.00025394,2]
[311797353,1705407046639,-151.0,0.00025541,2]
[311797354,1705407046648,-5925.58,0.00026143,3]
[311797355,1705407046658,-151.0,0.00026153,2]
[311797356,1705407046667,-643.039438,0.00026153,2]
[311797357,1705407046676,-643.039438,0.00026153,2]
[311797358,1705407046685,-508.788361,0.00026153,2]
[311797359,1705407046695,-508.788361,0.00026153,2]
[311797360,1705407046704,-151.0,0.00026153,2]
[311797361,1705407046714,-151.0,0.00026153,2]
[311797362,1705407046723,-50000.0,0.00026153,2]
[311797363,1705407046733,-220.8673856,0.00026252,2]
[311797364,1705407046743,-328.93751816,0.00026352,2]
[311797365,1705407046752,-9110.22573903,0.00026644,4]
[311797366,1705407046762,-620.00154018,0.00026663,2]
[311797367,1705407046772,-289.85545354,0.00027,2]
[311797368,1705407046781,-461.1686624,0.00027,2]
[311797369,1705407046791,-155.0,0.00027397,2]
[311797370,1705407046801,-220.86738559,0.00027414,2]
[311797371,1705407046811,-237.0,0.00027658,15]
[311797372,1705407046821,-96861.90792144,0.00027712,2]
[311797373,1705407046910,-6504.60363916,0.00027712,2]
[311797399,1705407174565,-154.98450155,0.00022856,4]
[311797400,1705407174587,-6350.01549845,0.00022856,2]
[311797431,1705407928492,-154.98450155,0.00022655,4]
[311797432,1705407928518,-300.68067028,0.00022656,2]
[311797433,1705407928545,-150.0,0.00022756,2]
[311797434,1705407928570,-2016.4081755,0.0002282,2]
[311797435,1705407928598,-971.76523249,0.00022856,2]
[311797436,1705407928625,-1822.27804191,0.00022857,2]
[311797437,1705407928651,-236.885099,0.00023753,2]
[311797438,1705407928678,-423.95026392,0.00024186,2]
[311797439,1705407928704,-271.96235488,0.00024186,2]
[311797440,1705407928730,-155.26607378,0.00024186,2]
[311797441,1705407928757,-293.94213474,0.00024187,2]
[311797442,1705407928783,-1700.87745195,0.00024188,2]
[311797446,1705408020296,-154.98450155,0.00020569,4]
[311797447,1705408020324,-302.75545275,0.00022855,2]
[311797448,1705408020456,-133.2600457,0.00022855,2]
[311797477,1705408234189,-3126.53628743,0.00021591,2]
[311797478,1705408234198,-361.0943622,0.00021591,2]
[311797479,1705408234210,-154.98450155,0.00021592,4]
[311797480,1705408234220,-1380.58447264,0.00021592,2]
[311797481,1705408234229,-179.4114258,0.00021594,2]
[311797482,1705408234238,-1031.29658725,0.00022337,2]
[311797483,1705408234248,-571.94518903,0.00022338,2]
[311797484,1705408234258,-24900.0,0.00022339,2]
[311797485,1705408234270,-202.93645785,0.00022755,2]
[311797486,1705408234279,-4937.98,0.00022845,3]
[311797487,1705408234289,-4114.98,0.00022845,3]
[311797488,1705408234298,-7990.7979956,0.00022854,2]
[311797489,1705408234308,-510.13402143,0.00022855,2]
[311797490,1705408234318,-2184.41484055,0.00022855,2]
[311797529,1705408238554,-465.85500015,0.00022845,3]
[311797537,1705408238614,-2963.29499985,0.00022845,3]
[311797539,1705408238623,-494.01180231,0.00022855,2]
[311797541,1705408238635,-7900.70156434,0.00022855,2]
[311797853,1705408241672,-282.47765289,0.00022855,2]
[311797878,1705408243617,-11452.19903423,0.00022855,2]
[311797879,1705408243629,-365.32763196,0.00022855,2]
[311797973,1705408529503,3129.59957689,0.00029,30]
[311798063,1705409431721,-154.98450155,0.00018673,3]
[311798064,1705409431731,-313.242941,0.00018674,2]
[311798065,1705409431740,-2364.09787129,0.00019341,2]
[311798066,1705409431752,-265.69464206,0.00019341,2]
[311798068,1705409431767,-770.72880891,0.00019341,2]
[311798069,1705409431779,-1230.16603797,0.00019341,2]
[311798228,1705409440691,-2811.92311989,0.0001934,2]
[311798229,1705409440701,-3817.44752826,0.00019341,2]
[311798230,1705409440712,-1884.05379935,0.00019341,2]
[311798231,1705409440724,-3132.56353726,0.00019341,2]
[311798232,1705409440736,-1607.16331625,0.00019341,2]
[311798294,1705409446415,154.98450155,0.00017436,3]
[311798296,1705409470417,154.98450155,0.00017436,3]
[311798298,1705409484403,154.98450155,0.00017436,3]
[311798302,1705409504412,154.98450155,0.00017434,3]
[311798303,1705409519142,40842.90634142,0.00017436,2]
[311798304,1705409519174,10000.0,0.00017436,2]
[311798305,1705409519199,200000.0,0.00017436,2]
[311798306,1705409519228,10000.0,0.00017436,2]
[311798309,1705409556243,-154.98450155,0.00017434,3]
[311798310,1705409556266,-272.26259732,0.00017435,2]
[311798311,1705409556288,-81129.55401684,0.00017435,2]
[311798312,1705409556310,-8737.19888429,0.00017436,2]
[311798314,1705409625495,-310.0,0.00017435,2]
[311798322,1705409691901,-415.48557544,0.00017433,2]
[311798323,1705409691922,-154.98450155,0.00017434,3]
[311798324,1705409691942,-154.98450155,0.00017434,2]
[311798325,1705409691961,-3215.01498963,0.00017435,2]
[311798326,1705409691986,-1274.86341873,0.00017435,2]
[311798327,1705409692006,-34321.6670131,0.00017435,2]
[311798332,1705409704938,154.98450155,0.00015691,2]
[311798335,1705409720927,154.98450155,0.00015691,2]
[311798340,1705409738936,154.98450155,0.00015689,2]
[311798343,1705409754952,154.98450155,0.00015688,2]
[311798344,1705409758976,-7951.66166768,0.00017432,2]
[311798345,1705409758995,-73072.33833232,0.00017433,2]
[311798346,1705409767501,3215.01498963,0.00015689,2]
[311798347,1705409773307,159.87666002,0.00015689,2]
[311798348,1705409777005,154.98450155,0.00015689,2]
[311798349,1705409781492,1011.86241122,0.00015689,2]
[311798350,1705409785875,3000.0,0.00016697,2]
[311798351,1705409794943,154.98450155,0.00015686,2]
[311798354,1705409810948,154.98450155,0.00015686,2]
[311798358,1705409826943,154.98450155,0.00015685,2]
[311798359,1705409828914,361.079369,0.0001643,2]
[311798361,1705409842676,-861.6446352,0.00017331,2]
[311798362,1705409842701,-228.18290436,0.00017332,2]
[311798363,1705409842722,-8782.17246044,0.00017425,2]
[311798364,1705409844952,154.98450155,0.00015681,2]
[311798366,1705409866946,154.98450155,0.0001568,2]
[311798367,1705409884941,154.98450155,0.00015679,2]
[311798368,1705409902975,154.98450155,0.00015592,2]
[311798369,1705409913825,-687.23089543,0.00017325,2]
[311798370,1705409913846,-13111.76910457,0.00017325,2]
[311798371,1705409922961,154.98450155,0.00015592,2]
[311798372,1705409930266,5692.02183867,0.0001715,2]
[311798373,1705409942953,154.98450155,0.0001559,2]
[311798374,1705409947446,547.3613648,0.00015592,2]
[311798375,1705409955510,156.52857959,0.00015592,2]
[311798376,1705409962965,154.98450155,0.00015588,2]
[311798377,1705409967451,205.2152476,0.00015592,2]
[311798379,1705409978965,154.98450155,0.00015585,2]
[311798380,1705409980344,-265.17316285,0.00017317,2]
[311798381,1705409980366,-7949.82683715,0.00017317,2]
[311798382,1705409998964,154.98450155,0.00015584,2]
[311798383,1705410008615,1583.0218539,0.00016448,2]
[311798384,1705410020965,154.98450155,0.00015581,2]
[311798385,1705410037011,154.98450155,0.00015578,2]
[311798386,1705410046962,4529.0,0.00016315,2]
[311798387,1705410052984,154.98450155,0.00015578,2]
[311798388,1705410068004,312.4212651,0.00016448,2]
[311798389,1705410076965,154.98450155,0.00015576,2]
[311798390,1705410102971,154.98450155,0.00015576,2]
[311798391,1705410118968,154.98450155,0.00015575,2]
[311798395,1705410223234,1466.67664473,0.00012971,2]
[311798396,1705410223672,24195.27624009,0.00016298,2]
[311798397,1705410223701,704.72375991,0.00016298,2]
[311798402,1705410276070,180.539684,0.00016271,2]
[311798405,1705410289004,154.98450155,0.00015489,2]
[311798407,1705410323008,154.98450155,0.00015485,2]
[311798408,1705410323204,217.9620188,0.00016598,2]
[311798409,1705410343011,154.98450155,0.00015485,2]
[311798410,1705410367042,154.98450155,0.00015479,2]
[311798413,1705410387015,154.98450155,0.00015476,2]
[311798415,1705410409109,154.98450155,0.00015474,2]
[311798416,1705410412216,308.96617009,0.00015485,2]
[311798417,1705410412771,1274.38736299,0.00015485,2]
[311798418,1705410428657,154.98450155,0.00015472,2]
[311798419,1705410447028,154.98450155,0.00015469,2]
[311798420,1705410465045,154.98450155,0.00015467,2]
[311798421,1705410483019,154.98450155,0.00015467,2]
[311798423,1705410499047,154.98450155,0.00015463,2]
[311798424,1705410515651,155.56238873,0.00015469,2]
[311798425,1705410517019,154.98450155,0.00015461,2]
[311798426,1705410539026,154.98450155,0.0001537,2]
[311798428,1705410559026,154.98450155,0.00015367,2]
[311798429,1705410577044,154.98450155,0.00015364,2]
[311798430,1705410595020,154.98450155,0.00015361,2]
[311798432,1705410615034,154.98450155,0.00015359,2]
[311798477,1705410632052,-1739.01951288,0.00017063,2]
[311798479,1705410632062,-154.98450155,0.00017063,2]
[311798481,1705410632071,-154.98450155,0.00017063,2]
[311798483,1705410632080,-19846.52895814,0.00017063,2]
[311798485,1705410632089,-561.04928644,0.00017064,2]
[311798487,1705410632099,-36924.85068782,0.00017064,2]
[311798489,1705410632107,-154.98450155,0.00017064,2]
[311798491,1705410632116,-286.06712723,0.00017064,2]
[311798493,1705410632126,-687.23089543,0.00017064,2]
[311798495,1705410632134,-154.98450155,0.00017064,2]
[311798497,1705410632143,-5178.14619186,0.00017065,2]
[311798499,1705410632152,-154.98450155,0.00017065,2]
[311798501,1705410632161,-403.00506807,0.00017065,2]
[311798503,1705410632170,-154.98450155,0.00017065,2]
[311798505,1705410632179,-1031.74114823,0.00017066,2]
[311798508,1705410632188,-452.21175221,0.00017066,2]
[311798511,1705410632198,-17166.50156528,0.00017066,2]
[311798592,1705410633045,154.98450155,0.00015358,2]
[311798617,1705410637958,-1385.63982187,0.00017062,2]
[311798619,1705410637973,-1467.19342675,0.00017062,2]
[311798621,1705410637985,-6215.16700704,0.00017062,2]
[311798624,1705410637998,-11785.11915576,0.00017062,2]
[311798625,1705410638007,-175.0415776,0.00017062,2]
[311798627,1705410638017,-1991.47489768,0.00017062,2]
[311798629,1705410638026,-164.46109721,0.00017062,2]
[311798631,1705410638035,-2513.82473854,0.00017066,2]
[311798633,1705410638043,-154.98450155,0.00017067,2]
[311798634,1705410638052,-191.21026172,0.00017067,2]
[311798636,1705410638061,-2711.18525978,0.00017067,2]
[311798638,1705410638071,-3126.53628743,0.00017067,2]
[311798640,1705410638080,-13706.10600457,0.00017067,2]
[311798641,1705410638090,-521.56474162,0.00017067,2]
[311798643,1705410638099,-616.12530775,0.00017067,2]
[311798645,1705410638108,-213.18676181,0.00017068,2]
[311798647,1705410638117,-154.98450155,0.00017068,2]
[311798649,1705410638126,-262.04802142,0.00017068,2]
[311798651,1705410638136,-1380.58447264,0.00017068,2]
[311798653,1705410638145,-8752.33712952,0.00017068,2]
[311798655,1705410638154,-7951.66166768,0.00017068,2]
[311798657,1705410638163,-1695.03946883,0.00017068,2]
[311798659,1705410638173,-1222.43070975,0.00017068,2]
[311798661,1705410638182,-1577.62749715,0.00017068,2]
[311798663,1705410638191,-154.98450155,0.00017068,2]
[311798665,1705410638200,-2811.92311989,0.00017069,2]
[311798667,1705410638209,-400.44492458,0.00017069,2]
[311798669,1705410638218,-154.98450155,0.00017069,2]
[311798671,1705410638228,-166.49194019,0.00017069,2]
[311798673,1705410638237,-170.68674597,0.00017069,2]
[311798675,1705410638246,-246.3473914,0.00017069,2]
[311798677,1705410638255,-154.98450155,0.00017069,2]
[311798679,1705410638264,-154.98450155,0.0001707,2]
[311798681,1705410638273,-15897.44232842,0.0001707,2]
[311798683,1705410638282,-218.770884,0.00017072,2]
[311798685,1705410638291,-6496.26070839,0.00017073,2]
[311798687,1705410638300,-154.98450155,0.00017079,2]
[311798689,1705410638310,-166.34673671,0.00017083,2]
[311798690,1705410638318,-166.3467367,0.00017089,2]
[311798691,1705410638328,-155.19840315,0.00017186,2]
[311798692,1705410638337,-447.94280679,0.00017188,2]
[311798693,1705410638349,-1294.11270376,0.0001721,2]
[311798694,1705410638358,-156.74786988,0.0001721,2]
[311798695,1705410638367,-1902.95068082,0.0001721,2]
[311798696,1705410638375,-81129.55401684,0.00017211,2]
[311798697,1705410638385,-521.09377722,0.00017288,2]
[311798698,1705410638394,-309.95350775,0.00017294,2]
[311798699,1705410638404,-309.95350465,0.00017294,2]
[311798700,1705410638412,-322.87152922,0.00017294,2]
[311798701,1705410638424,-470.14941068,0.00017298,2]
[311798702,1705410638434,-12150.24705504,0.00017309,2]
[311798703,1705410638443,-163.05314116,0.00017315,2]
[311798704,1705410638452,-514.43155,0.00017317,2]
[311798705,1705410638461,-514.43155,0.00017317,2]
[311798706,1705410638469,-812.6591,0.00017317,2]
[311798707,1705410638479,-812.6591,0.00017317,2]
[311798708,1705410638488,-155.14300858,0.00017318,2]
[311798709,1705410638497,-2545.23233227,0.00017318,2]
[311798710,1705410638505,-167.89275327,0.00017318,2]
[311798711,1705410638516,-4136.96980501,0.00017318,2]
[311798712,1705410638525,-155.18974638,0.00017318,2]
[311798713,1705410638534,-155.77024715,0.00017318,2]
[311798714,1705410638543,-637.26620041,0.00017318,2]
[311798715,1705410638552,-250.90128938,0.00017318,2]
[311798716,1705410638561,-301.9903126,0.00017318,2]
[311798717,1705410638570,-323.27217089,0.00017318,2]
[311798718,1705410638579,-155.13230412,0.0001732,2]
[311798719,1705410638588,-222.15590729,0.0001732,2]
[311798720,1705410638597,-176.63785713,0.0001732,2]
[311798721,1705410638606,-155.15668265,0.0001732,2]
[311798722,1705410638615,-155.2341359,0.0001732,2]
[311798723,1705410638624,-162.61777834,0.0001732,2]
[311798724,1705410638633,-1647.46294033,0.0001732,2]
[311798725,1705410638642,-250.01380592,0.0001732,2]
[311798726,1705410638651,-215.78415089,0.0001732,2]
[311798727,1705410638659,-1424.32228167,0.0001732,2]
[311798728,1705410638668,-155.18012841,0.0001732,2]
[311798729,1705410638677,-155.01395126,0.0001732,2]
[311798730,1705410638686,-362.79223063,0.00017423,2]
[311798731,1705410638695,-526.17799726,0.00017432,2]
[311798732,1705410638704,-166.80011479,0.00017432,2]
[311798733,1705410638714,-154.98450155,0.00017432,2]
[311798734,1705410638723,-154.98450155,0.00017432,2]
[311798735,1705410638732,-875.47285714,0.00017432,2]
[311798736,1705410638741,-278252.4632834,0.00017435,2]
[311798737,1705410638750,-1273.56704615,0.00017435,2]
[311798738,1705410638759,-514.43155,0.00017435,2]
[311798739,1705410638768,-514.43155,0.00017435,2]
[311798740,1705410638777,-812.6591,0.00017435,2]
[311798741,1705410638786,-812.6591,0.00017435,2]
[311798742,1705410638795,-4455.45835041,0.00017898,2]
[311798743,1705410638805,-153.083675,0.00018516,2]
[311798744,1705410638815,-151.0,0.00018516,2]
[311798745,1705410638824,-1151.84252325,0.000189,2]
[311798746,1705410638833,-1580.16851554,0.00019,2]
[311798747,1705410638842,-151.0,0.00019323,2]
[311798748,1705410638851,-3041.08403014,0.00019373,2]
[311798749,1705410638861,-272.03247806,0.00019376,2]
[311798750,1705410638870,-1196.44070962,0.0002,2]
[311798751,1705410638879,-849.03657826,0.0002,2]
[311798752,1705410638888,-154.98450155,0.0002,2]
[311798753,1705410638897,-272.5066937,0.0002,2]
[311798754,1705410638906,-155.39876402,0.0002,2]
[311798755,1705410638915,-3228.41581946,0.00021,2]
[311798756,1705410638924,-327.11193919,0.00021,2]
[311798757,1705410638934,-500.0,0.000211,2]
[311798758,1705410638943,-13500.0,0.000212,2]
[311798759,1705410638952,-514.43155,0.000212,2]
[311798760,1705410638960,-514.43155,0.000212,2]
[311798761,1705410638969,-812.6591,0.000212,2]
[311798762,1705410638978,-812.6591,0.000212,2]
[311798763,1705410638987,-151.0,0.00021436,2]
[311798764,1705410638996,-166.666666,0.00021918,2]
[311798765,1705410639006,-3951.89502767,0.00022,2]
[311798766,1705410639015,-151.0,0.00022,2]
[311798767,1705410639024,-10137.79263349,0.00022,2]